Workbook

Sheet Start
A2: Välkommen till beräkningsverktyget för produktetiketter till paket med pannor, värmepumpar och varmvattenberedare
A4: Välj typ av panna eller värmepump

Sheet Auxiliary Tables_CH (hidden)
A1: Combination Heater | E1: Space Heater | J1: Water Heater
A2: Prated / (Prated + Psup) | B2: with storage tank | C2: without storage tank
A3: 0 | B3: 1 | C3: 1
A4: 0.01 | B4: 0.97 | C4: 0.963
A5: 0.02 | B5: 0.94 | C5: 0.926
A6: 0.03 | B6: 0.91 | C6: 0.889
A7: 0.04 | B7: 0.88 | C7: 0.852
A8: 0.05 | B8: 0.85 | C8: 0.815
A9: 0.06 | B9: 0.82 | C9: 0.778
A10: 0.07 | B10: 0.79 | C10: 0.741
A11: 0.08 | B11: 0.76 | C11: 0.704
A12: 0.09 | B12: 0.73 | C12: 0.667
A13: 0.1 | B13: 0.7 | C13: 0.63
A14: 0.11 | B14: 0.675 | C14: 0.597
A15: 0.12 | B15: 0.65 | C15: 0.564
A16: 0.13 | B16: 0.625 | C16: 0.531
A17: 0.14 | B17: 0.6 | C17: 0.498
A18: 0.15 | B18: 0.575 | C18: 0.465
A19: 0.16 | B19: 0.55 | C19: 0.432
A20: 0.17 | B20: 0.525 | C20: 0.399
A21: 0.18 | B21: 0.5 | C21: 0.366
A22: 0.19 | B22: 0.475 | C22: 0.333
A23: 0.2 | B23: 0.45 | C23: 0.3
A24: 0.21 | B24: 0.43 | C24: 0.285
A25: 0.22 | B25: 0.41 | C25: 0.27
A26: 0.23 | B26: 0.39 | C26: 0.255
A27: 0.24 | B27: 0.37 | C27: 0.24
A28: 0.25 | B28: 0.35 | C28: 0.225
A29: 0.26 | B29: 0.33 | C29: 0.21
A30: 0.27 | B30: 0.31 | C30: 0.195
A31: 0.28 | B31: 0.29 | C31: 0.18
A32: 0.29 | B32: 0.27 | C32: 0.165
A33: 0.3 | B33: 0.25 | C33: 0.15
A34: 0.31 | B34: 0.24 | C34: 0.141
A35: 0.32 | B35: 0.23 | C35: 0.132
A36: 0.33 | B36: 0.22 | C36: 0.123
A37: 0.34 | B37: 0.21 | C37: 0.114
A38: 0.35 | B38: 0.2 | C38: 0.105
A39: 0.36 | B39: 0.19 | C39: 0.096
A40: 0.37 | B40: 0.18 | C40: 0.087
A41: 0.38 | B41: 0.17 | C41: 0.078
A42: 0.39 | B42: 0.16 | C42: 0.069
A43: 0.4 | B43: 0.15 | C43: 0.06
A44: 0.41 | B44: 0.14 | C44: 0.056
A45: 0.42 | B45: 0.13 | C45: 0.052
A46: 0.43 | B46: 0.12 | C46: 0.048
A47: 0.44 | B47: 0.11 | C47: 0.044
A48: 0.45 | B48: 0.1 | C48: 0.04
A49: 0.46 | B49: 0.09 | C49: 0.036
A50: 0.47 | B50: 0.08 | C50: 0.032
A51: 0.48 | B51: 0.07 | C51: 0.028
A52: 0.49 | B52: 0.06 | C52: 0.024
A53: 0.5 | B53: 0.05 | C53: 0.02
A54: 0.51 | B54: 0.047 | C54: 0.018
A55: 0.52 | B55: 0.044 | C55: 0.016
A56: 0.53 | B56: 0.041 | C56: 0.014
A57: 0.54 | B57: 0.038 | C57: 0.012
A58: 0.55 | B58: 0.035 | C58: 0.01
A59: 0.56 | B59: 0.032 | C59: 0.008
A60: 0.57 | B60: 0.029 | C60: 0.006
A61: 0.58 | B61: 0.026 | C61: 0.004
A62: 0.59 | B62: 0.023 | C62: 0.002
A63: 0.6 | B63: 0.02 | C63: 0
A64: 0.61 | B64: 0.018 | C64: 0
A65: 0.62 | B65: 0.016 | C65: 0
A66: 0.63 | B66: 0.014 | C66: 0
A67: 0.64 | B67: 0.012 | C67: 0
A68: 0.65 | B68: 0.01 | C68: 0
A69: 0.66 | B69: 0.008 | C69: 0
A70: 0.67 | B70: 0.006 | C70: 0
A71: 0.68 | B71: 0.004 | C71: 0
A72: 0.69 | B72: 0.002 | C72: 0
A73: 0.7 | B73: 0 | C73: 0
A76: Psup / (Prated + Psup) | B76: without storage tank | C76: with storage tank
A77: 0 | B77: 0 | C77: 0
A78: 0.01 | B78: 0.03 | C78: 0.037
A79: 0.02 | B79: 0.06 | C79: 0.074
A80: 0.03 | B80: 0.09 | C80: 0.111
A81: 0.04 | B81: 0.12 | C81: 0.148
A82: 0.05 | B82: 0.15 | C82: 0.185
A83: 0.06 | B83: 0.18 | C83: 0.222
A84: 0.07 | B84: 0.21 | C84: 0.259
A85: 0.08 | B85: 0.24 | C85: 0.296
A86: 0.09 | B86: 0.27 | C86: 0.333
A87: 0.1 | B87: 0.3 | C87: 0.37
A88: 0.11 | B88: 0.325 | C88: 0.403
A89: 0.12 | B89: 0.35 | C89: 0.436
A90: 0.13 | B90: 0.375 | C90: 0.469
A91: 0.14 | B91: 0.4 | C91: 0.502
A92: 0.15 | B92: 0.425 | C92: 0.535
A93: 0.16 | B93: 0.45 | C93: 0.568
A94: 0.17 | B94: 0.475 | C94: 0.601
A95: 0.18 | B95: 0.5 | C95: 0.634
A96: 0.19 | B96: 0.525 | C96: 0.667
A97: 0.2 | B97: 0.55 | C97: 0.7
A98: 0.21 | B98: 0.57 | C98: 0.715
A99: 0.22 | B99: 0.59 | C99: 0.73
A100: 0.23 | B100: 0.61 | C100: 0.745
A101: 0.24 | B101: 0.63 | C101: 0.76
A102: 0.25 | B102: 0.65 | C102: 0.775
A103: 0.26 | B103: 0.67 | C103: 0.79
A104: 0.27 | B104: 0.69 | C104: 0.805
A105: 0.28 | B105: 0.71 | C105: 0.82
A106: 0.29 | B106: 0.73 | C106: 0.835
A107: 0.3 | B107: 0.75 | C107: 0.85
A108: 0.31 | B108: 0.76 | C108: 0.859
A109: 0.32 | B109: 0.77 | C109: 0.868
A110: 0.33 | B110: 0.78 | C110: 0.877
A111: 0.34 | B111: 0.79 | C111: 0.886
A112: 0.35 | B112: 0.8 | C112: 0.895
A113: 0.36 | B113: 0.81 | C113: 0.904
A114: 0.37 | B114: 0.82 | C114: 0.913
A115: 0.38 | B115: 0.83 | C115: 0.922
A116: 0.39 | B116: 0.84 | C116: 0.931
A117: 0.4 | B117: 0.85 | C117: 0.94
A118: 0.41 | B118: 0.86 | C118: 0.944
A119: 0.42 | B119: 0.87 | C119: 0.948
A120: 0.43 | B120: 0.88 | C120: 0.952
A121: 0.44 | B121: 0.89 | C121: 0.956
A122: 0.45 | B122: 0.9 | C122: 0.96
A123: 0.46 | B123: 0.91 | C123: 0.964
A124: 0.47 | B124: 0.92 | C124: 0.968
A125: 0.48 | B125: 0.93 | C125: 0.972
A126: 0.49 | B126: 0.94 | C126: 0.976
A127: 0.5 | B127: 0.95 | C127: 0.98
A128: 0.51 | B128: 0.953 | C128: 0.982
A129: 0.52 | B129: 0.956 | C129: 0.984
A130: 0.53 | B130: 0.959 | C130: 0.986
A131: 0.54 | B131: 0.962 | C131: 0.988
A132: 0.55 | B132: 0.965 | C132: 0.99
A133: 0.56 | B133: 0.968 | C133: 0.992
A134: 0.57 | B134: 0.971 | C134: 0.994
A135: 0.58 | B135: 0.974 | C135: 0.996
A136: 0.59 | B136: 0.977 | C136: 0.998
A137: 0.6 | B137: 0.98 | C137: 1
A138: 0.61 | B138: 0.982 | C138: 1
A139: 0.62 | B139: 0.984 | C139: 1
A140: 0.63 | B140: 0.986 | C140: 1
A141: 0.64 | B141: 0.988 | C141: 1
A142: 0.65 | B142: 0.99 | C142: 1
A143: 0.66 | B143: 0.992 | C143: 1
A144: 0.67 | B144: 0.994 | C144: 1
A145: 0.68 | B145: 0.996 | C145: 1
A146: 0.69 | B146: 0.998 | C146: 1
A147: 0.7 | B147: 1 | C147: 1
A150: Temperature Control
A151: Class I | B151: 0.01
A152: Class II | B152: 0.02
A153: Class III | B153: 0.015
A154: Class IV | B154: 0.02
A155: Class V | B155: 0.03
A156: Class VI | B156: 0.04
A157: Class VII | B157: 0.035
A158: Class VIII | B158: 0.05
A160: Solar Contribution - Tank Rating
A161: A+ | B161: 0.95
A162: A | B162: 0.91
A163: B | B163: 0.86
A164: C | B164: 0.83
A165: D | B165: 0.81
A166: E | B166: 0.81
A167: F | B167: 0.81
A168: G | B168: 0.81
A170: Efficiency Class of Package
A171: =VLOOKUP(B171,_CH_EfficiencyClassOfPackage_Lookup_Reference,IF(_CH_Preferential_Heater_Type="Low-temperature Heat Pump",3,2),FALSE) -> 0 | B171: G
A172: 0.3 | B172: F
A173: 0.34 | B173: E
A174: 0.36 | B174: D
A175: 0.75 | B175: C
A176: 0.82 | B176: B
A177: 0.9 | B177: A
A178: 0.98 | B178: A+
A179: 1.25 | B179: A++
A180: 1.5 | B180: A+++
A182: Load Profile | B182: Qref
A183: M | B183: 5.845
A184: L | B184: 11.655
A185: XL | B185: 19.07
A186: XXL | B186: 24.53
A189: M | B189: 1
A190: L | B190: 2
A191: XL | B191: 3
A192: XXL | B192: 4
A194: Water Heating Efficiecny Class
A195: M
A196: 0 | B196: G
A197: 0.27 | B197: F
A198: 0.3 | B198: E
A199: 0.33 | B199: D
A200: 0.36 | B200: C
A201: 0.39 | B201: B
A202: 0.65 | B202: A
A203: 1 | B203: A+
A204: 1.3 | B204: A++
A205: 1.63 | B205: A+++
A207: L
A208: 0 | B208: G
A209: 0.27 | B209: F
A210: 0.3 | B210: E
A211: 0.34 | B211: D
... 60 more rows

Sheet Auxiliary Calculations_CH (hidden)
A1: Combination Heater
A3: Psup | B3: =IF(_CH_SupplementaryHeater="Yes",_CH_Psup_Boiler,0)+IF(_CH_SupplementaryHeatPump="Yes",_CH_Psup_HP,0) -> 0
A5: Psup / (Prated + Psup) | B5: =ROUND(_CH_Psup/(_CH_Prated+_CH_Psup_Boiler),2) -> 0
A7: Prated / (Prated + Psup) | B7: =ROUND(_CH_Prated/(_CH_Prated+_CH_Psup),2) -> 1
A9: Heat output of preferential and supplementary heaters
A10: Heating II | B10: =IF(_CH_Preferential_Heater_Type="Boiler",VLOOKUP(B5,_CH_StorageTank_Lookup_Boiler,IF(_CH_StorageTank="Yes",3,2),FALSE),VLOOKUP(B7,_CH_StorageTank_Lookup_Others,IF(_CH_StorageTank="Yes",2,3),FALSE)) -> 0
A12: Heating III | B12: =2.94/(11*_CH_Prated) -> 0.005345454545
A14: Heating IV | B14: =1.15/(11*_CH_Prated) -> 0.002090909091
A15: Heating Efficiency Class
A16: G | B16: =IF(_CH_Overall_Heating_EfficiencyClass=A16,TRUE,FALSE) -> FALSE
A17: F | B17: FALSE
A18: E | B18: FALSE
A19: D | B19: FALSE
A20: C | B20: FALSE
A21: B | B21: TRUE
A22: A | B22: FALSE
A23: A+ | B23: FALSE
A24: A++ | B24: FALSE
A25: A+++ | B25: FALSE
A27: Water Efficiency Class
A28: G | B28: =IF(_CH_Overall_Water_EfficiencyClass=A28,TRUE,FALSE) -> FALSE
A29: F | B29: FALSE
A30: E | B30: FALSE
A31: D | B31: FALSE
A32: C | B32: FALSE
A33: B | B33: FALSE
A34: A | B34: FALSE
A35: A+ | B35: FALSE
A36: A++ | B36: TRUE
A37: A+++ | B37: FALSE
A39: Additional Heater | B39: =IF(OR(_CH_SupplementaryHeater="Yes",_CH_SupplementaryHeatPump="Yes"),TRUE,FALSE) -> FALSE
A40: Temperature Control | B40: =IF(_CH_TemperatureControl="Yes",TRUE,FALSE) -> TRUE
A41: Solar Contribution | B41: =IF(_CH_SolarContribution="Yes",TRUE,FALSE) -> TRUE
A42: Storage Tank | B42: =IF(_CH_StorageTank="Yes",TRUE,FALSE) -> TRUE
A45: Water_II | B45: =220*VLOOKUP(_CH_LoadProfile,_CH_LoadProfile_Lookup,2,FALSE)/_CH_Qnonsol -> 1.607375
A47: Water_III | B47: =_CH_Qaux*2.5/220/VLOOKUP(_CH_LoadProfile,_CH_LoadProfile_Lookup,2,FALSE) -> 0.003888327242
A49: Efficiency Class of the preferential heater | B49: =VLOOKUP(_CH_Heating_I,_CH_EfficiencyClassOfPreferentialHeater_Lookup,2,TRUE) -> B
A51: Water Heating Efficiency Class of the preferential heater | B51: =VLOOKUP(_CH_Water_I,INDIRECT("_CH_WaterEfficiencyClassOfPackage_Lookup_"&_CH_LoadProfile),2) -> A+
A53: Supplementary Boiler Factor | B53: =IF(_CH_Preferential_Heater_Type="Boiler",0.1,_CH_Heating_II) -> 0.1

Sheet Input_CombinationHeater
A1: Allmän information
A3: Återförsäljare
A6: Modellbeteckning
A9: Primär värmare
A11: Typ av primär värmare
A12: Boiler
A14: Säsongsmedelverkningsgrad vid rumsuppvärmning för den primära värmaren | B14: 0.85
A16: Energieffektivitet vid tappvattenvärmning för den primära värmaren | B16: 1
A18: Belastningsprofil (tappvattenvärmning) | B18: M
A20: Nominell avgiven värmeeffekt för den primära värmaren (Prated) | B20: 50 | C20: kW
A22: Ackumulatortank
A24: Finns ackumulatortank installerad? | B24: Yes | C24: [Yes/No]
A26: Tankvolym | B26: 1.5 | C26: m³
A28: Energieffektivitetsklass för ackumulatortank | B28: C
A30: Temperaturreglering
A32: Finns temperaturreglering installerat | B32: Yes | C32: [Yes/No]
A34: Klass för temperaturreglaring | B34: Class I
A36: Solfångare
A38: Finns solfångare installerat? | B38: Yes | C38: [Yes/No]
A40: Årligt värmebidrag från andra källor än solen (Qnonsol) | B40: 800 | C40: kWh
A42: Årlig förbrukning av tilläggsel (Qaux) | B42: 2 | C42: kWh
A44: Solfångarens öppningsarea | B44: 5 | C44: m²
A46: Solfångarens effektivitet | B46: 0.95
A48: Tillsatspanna
A50: Finns tillsatspanna installerad? | B50: No | C50: [Yes/No]
A52: Säsongsmedelverkningsgrad för rumsuppvärmning | B52: 1.05
A54: Nominell avgiven värmeeffekt för tillsatspanna (Psup, boiler) | B54: 25 | C54: kW
A56: Tillsatsvärmepump
A58: Finns tillsatsvärmepump installerad? | B58: No | C58: [Yes/No]
A60: Säsongsmedelverkningsgrad för rumsuppvärmning | B60: 2.6
A62: Nominell avgiven värmeeffekt för tillsatspanna (Psup, heat pump) | B62: 5 | C62: kW

Sheet Output_CombinationHeater
A2: Säsongsmedelverkningsgrad vid rumsuppvärmning för panna/värmepump | B2: =_CH_SeasonalSpaceHeatingEnergyEfficiency_Pref -> 0.85
A4: Temperaturreglering | B4: =IF(_CH_TemperatureControl="Yes",VLOOKUP(_CH_TemperatureControlClass,_CH_TemperatureControlClasses_Lookup,2,FALSE),0) -> 0.01
A6: Tillsatspanna | B6: =IF(_CH_SupplementaryHeater="Yes",(_CH_SeasonalSpaceHeatingEnergyEfficiency_sup-_CH_SeasonalSpaceHeatingEnergyEfficiency_Pref)*_CH_Supplementary_Heater_Factor,0) -> 0
A8: Solvärmebidrag | B8: =IF(_CH_SolarContribution="Yes",(_CH_Heating_III*_CH_SolarContribution_CollectorSize+_CH_Heating_IV*_CH_SolarContribution_TankVolume)*VLOOKUP(_CH_Preferential_Heater_Type,_CH_Solar_Contribution_Factor,2,FALSE)*_CH_SolarContribution_CollectorEfficiency*VLOOKUP(_CH_SolarContribution_TankRating,_CH_SolarContribution_TankRating_Lookup,2,FALSE),0) -> 0.02119272955
A10: Tillsatsvärmepump | B10: =IF(AND(_CH_SupplementaryHeatPump="Yes",_CH_Preferential_Heater_Type="Boiler"),(_CH_SupplementaryHeatPump_SeasonalSpaceHeatingEnergyEfficiency-_CH_Heating_I)*_CH_Heating_II,0) -> 0
A12: Bidrag solvärme och tillsatsvärmepump | B12: =IF(AND(_CH_SolarContribution="YES",_CH_SupplementaryHeatPump="YES",_CH_Preferential_Heater_Type="Boiler"),-0.5*MIN(_CH_4,_CH_5),0) -> 0
A14: Paketets säsongsbundna energieffektivitet vid rumsuppvärmning | B14: =SUM(B2,B4,B6,B8,B10,B12) -> 0.8811927295
A16: Paketets energieffektivitetsklass vid rumsuppvärmning | B16: =VLOOKUP(_CH_EfficiencyClassOfPackage,_CH_EfficiencyClassOfPackage_Lookup,2) -> B
A19: Energieffektivitet vid tappvarmvattenvärmning | B19: =_CH_Water_I -> 1
A21: Solvärmebidrag | B21: =IF(_CH_SolarContribution_Bool,(1.1*_CH_Water_I-0.1)*_CH_Water_II-_CH_Water_III-B19,0) -> 0.6034866728
A23: Paketets säsongsbundna energieffektivitet vid tappvarmvattenvärmning | B23: =SUM(_CH_Water_1,_CH_Water_2) -> 1.603486673
A25: Paketets energieffektivitetsklass vid tappvarmvattenvärmning | B25: =VLOOKUP(B23,INDIRECT("_CH_WaterEfficiencyClassOfPackage_Lookup_"&_CH_LoadProfile),2) -> A++

Sheet Label_CombinationHeater

Sheet Input_SpaceHeater (hidden)
A2: Allmän information
A4: Återförsäljare
A7: Modellbeteckning
A10: Primär värmare
A12: Typ av primär värmare
A13: Boiler
A15: Säsongsmedelverkningsgrad vid rumsuppvärmning för den primära värmaren | B15: 0.85
A17: Nominell avgiven värmeeffekt för den primära värmaren (Prated) | B17: 12 | C17: kW
A19: Ackumulatortank
A21: Finns ackumulatortank installerad? | B21: No | C21: [Yes/No]
A23: Tankvolym | B23: 1.5 | C23: m³
A25: Energieffektivitetsklass för ackumulatortank | B25: C
A27: Temperaturreglering
A29: Finns temperaturreglering installerat | B29: No | C29: [Yes/No]
A31: Klass för temperaturreglaring | B31: Class I
A33: Solfångare
A35: Finns solfångare installerat? | B35: No | C35: [Yes/No]
A37: Solfångarens öppningsarea | B37: 8 | C37: m²
A39: Solfångarens effektivitet | B39: 0.95
A41: Tillsatspanna
A43: Finns tillsatspanna installerad? | B43: Yes | C43: [Yes/No]
A45: Säsongsmedelverkningsgrad för rumsuppvärmning | B45: 1.5
A47: Nominell avgiven värmeeffekt för tillsatspanna (Psup, boiler) | B47: 5 | C47: kW
A49: Tillsatsvärmepump
A51: Finns tillsatsvärmepump installerad? | B51: No | C51: [Yes/No]
A53: Säsongsmedelverkningsgrad vid rumsuppvärmning | B53: 0.95
A55: Nominell avgiven värmeeffekt för tillsatspanna (Psup, heat pump) | B55: 5 | C55: kW

Sheet Output_SpaceHeater (hidden)
A2: Säsongsmedelverkningsgrad vid rumsuppvärmning för panna/värmepump | B2: =_SH_SeasonalSpaceHeatingEnergyEfficiency_Pref -> 0.85
A4: Temperaturreglering | B4: =IF(_SH_TemperatureControl="Yes",VLOOKUP(_SH_TemperatureControlClass,_SH_TemperatureControlClasses_Lookup,2,FALSE),0) -> 0
A6: Tillsatspanna | B6: =IF(_SH_SupplementaryHeater="Yes",(_SH_SeasonalSpaceHeatingEnergyEfficiency_sup-_SH_SeasonalSpaceHeatingEnergyEfficiency_Pref)*_SH_Supplementary_Heater_Factor,0) -> 0.065
A8: Solvärmebidrag | B8: =IF(_SH_SolarContribution="Yes",(_SH_III*_SH_SolarContribution_CollectorSize+_SH_IV*_SH_SolarContribution_TankVolume)*VLOOKUP(_SH_Preferential_Heater_Type,_SH_Solar_Contribution_Factor,2,FALSE)*_SH_SolarContribution_CollectorEfficiency*VLOOKUP(_SH_SolarContribution_TankRating,_SH_SolarContribution_TankRating_Lookup,2,FALSE),0) -> 0
A10: Tillsatsvärmepump | B10: =IF(AND(_SH_SupplementaryHeatPump="Yes",_SH_Preferential_Heater_Type="Boiler"),(_SH_SupplementaryHeatPump_SeasonalSpaceHeatingEnergyEfficiency-_SH_I)*_SH_II,0) -> 0
A12: Bidrag solvärme och tillsatsvärmepump | B12: =IF(AND(_SH_SolarContribution="YES",_SH_SupplementaryHeatPump="YES",_SH_Preferential_Heater_Type="Boiler"),-0.5*MIN(_SH_4,_SH_5),0) -> 0
A14: Paketets säsongsbundna energieffektivitet vid rumsuppvärmning | B14: =SUM(B2,B4,B6,B8,B10,B12) -> 0.915
A16: Paketets energieffektivitetsklass vid rumsuppvärmning | B16: =VLOOKUP(_SH_EfficiencyClassOfPackage,_SH_EfficiencyClassOfPackage_Lookup,2) -> A

Sheet Label_SpaceHeater (hidden)

Sheet Auxiliary Tables_SH (hidden)
A2: Prated / (Prated + Psup) | B2: with storage tank | C2: without storage tank
A3: 0 | B3: 1 | C3: 1
A4: 0.01 | B4: 0.97 | C4: 0.963
A5: 0.02 | B5: 0.94 | C5: 0.926
A6: 0.03 | B6: 0.91 | C6: 0.889
A7: 0.04 | B7: 0.88 | C7: 0.852
A8: 0.05 | B8: 0.85 | C8: 0.815
A9: 0.06 | B9: 0.82 | C9: 0.778
A10: 0.07 | B10: 0.79 | C10: 0.741
A11: 0.08 | B11: 0.76 | C11: 0.704
A12: 0.09 | B12: 0.73 | C12: 0.667
A13: 0.1 | B13: 0.7 | C13: 0.63
A14: 0.11 | B14: 0.675 | C14: 0.597
A15: 0.12 | B15: 0.65 | C15: 0.564
A16: 0.13 | B16: 0.625 | C16: 0.531
A17: 0.14 | B17: 0.6 | C17: 0.498
A18: 0.15 | B18: 0.575 | C18: 0.465
A19: 0.16 | B19: 0.55 | C19: 0.432
A20: 0.17 | B20: 0.525 | C20: 0.399
A21: 0.18 | B21: 0.5 | C21: 0.366
A22: 0.19 | B22: 0.475 | C22: 0.333
A23: 0.2 | B23: 0.45 | C23: 0.3
A24: 0.21 | B24: 0.43 | C24: 0.285
A25: 0.22 | B25: 0.41 | C25: 0.27
A26: 0.23 | B26: 0.39 | C26: 0.255
A27: 0.24 | B27: 0.37 | C27: 0.24
A28: 0.25 | B28: 0.35 | C28: 0.225
A29: 0.26 | B29: 0.33 | C29: 0.21
A30: 0.27 | B30: 0.31 | C30: 0.195
A31: 0.28 | B31: 0.29 | C31: 0.18
A32: 0.29 | B32: 0.27 | C32: 0.165
A33: 0.3 | B33: 0.25 | C33: 0.15
A34: 0.31 | B34: 0.24 | C34: 0.141
A35: 0.32 | B35: 0.23 | C35: 0.132
A36: 0.33 | B36: 0.22 | C36: 0.123
A37: 0.34 | B37: 0.21 | C37: 0.114
A38: 0.35 | B38: 0.2 | C38: 0.105
A39: 0.36 | B39: 0.19 | C39: 0.096
A40: 0.37 | B40: 0.18 | C40: 0.087
A41: 0.38 | B41: 0.17 | C41: 0.078
A42: 0.39 | B42: 0.16 | C42: 0.069
A43: 0.4 | B43: 0.15 | C43: 0.06
A44: 0.41 | B44: 0.14 | C44: 0.056
A45: 0.42 | B45: 0.13 | C45: 0.052
A46: 0.43 | B46: 0.12 | C46: 0.048
A47: 0.44 | B47: 0.11 | C47: 0.044
A48: 0.45 | B48: 0.1 | C48: 0.04
A49: 0.46 | B49: 0.09 | C49: 0.036
A50: 0.47 | B50: 0.08 | C50: 0.032
A51: 0.48 | B51: 0.07 | C51: 0.028
A52: 0.49 | B52: 0.06 | C52: 0.024
A53: 0.5 | B53: 0.05 | C53: 0.02
A54: 0.51 | B54: 0.047 | C54: 0.018
A55: 0.52 | B55: 0.044 | C55: 0.016
A56: 0.53 | B56: 0.041 | C56: 0.014
A57: 0.54 | B57: 0.038 | C57: 0.012
A58: 0.55 | B58: 0.035 | C58: 0.01
A59: 0.56 | B59: 0.032 | C59: 0.008
A60: 0.57 | B60: 0.029 | C60: 0.006
A61: 0.58 | B61: 0.026 | C61: 0.004
A62: 0.59 | B62: 0.023 | C62: 0.002
A63: 0.6 | B63: 0.02 | C63: 0
A64: 0.61 | B64: 0.018 | C64: 0
A65: 0.62 | B65: 0.016 | C65: 0
A66: 0.63 | B66: 0.014 | C66: 0
A67: 0.64 | B67: 0.012 | C67: 0
A68: 0.65 | B68: 0.01 | C68: 0
A69: 0.66 | B69: 0.008 | C69: 0
A70: 0.67 | B70: 0.006 | C70: 0
A71: 0.68 | B71: 0.004 | C71: 0
A72: 0.69 | B72: 0.002 | C72: 0
A73: 0.7 | B73: 0 | C73: 0
A76: Psup / (Prated + Psup) | B76: without storage tank | C76: with storage tank
A77: 0 | B77: 0 | C77: 0
A78: 0.01 | B78: 0.03 | C78: 0.037
A79: 0.02 | B79: 0.06 | C79: 0.074
A80: 0.03 | B80: 0.09 | C80: 0.111
A81: 0.04 | B81: 0.12 | C81: 0.148
A82: 0.05 | B82: 0.15 | C82: 0.185
A83: 0.06 | B83: 0.18 | C83: 0.222
A84: 0.07 | B84: 0.21 | C84: 0.259
A85: 0.08 | B85: 0.24 | C85: 0.296
A86: 0.09 | B86: 0.27 | C86: 0.333
A87: 0.1 | B87: 0.3 | C87: 0.37
A88: 0.11 | B88: 0.325 | C88: 0.403
A89: 0.12 | B89: 0.35 | C89: 0.436
A90: 0.13 | B90: 0.375 | C90: 0.469
A91: 0.14 | B91: 0.4 | C91: 0.502
A92: 0.15 | B92: 0.425 | C92: 0.535
A93: 0.16 | B93: 0.45 | C93: 0.568
A94: 0.17 | B94: 0.475 | C94: 0.601
A95: 0.18 | B95: 0.5 | C95: 0.634
A96: 0.19 | B96: 0.525 | C96: 0.667
A97: 0.2 | B97: 0.55 | C97: 0.7
A98: 0.21 | B98: 0.57 | C98: 0.715
A99: 0.22 | B99: 0.59 | C99: 0.73
A100: 0.23 | B100: 0.61 | C100: 0.745
A101: 0.24 | B101: 0.63 | C101: 0.76
A102: 0.25 | B102: 0.65 | C102: 0.775
A103: 0.26 | B103: 0.67 | C103: 0.79
A104: 0.27 | B104: 0.69 | C104: 0.805
A105: 0.28 | B105: 0.71 | C105: 0.82
A106: 0.29 | B106: 0.73 | C106: 0.835
A107: 0.3 | B107: 0.75 | C107: 0.85
A108: 0.31 | B108: 0.76 | C108: 0.859
A109: 0.32 | B109: 0.77 | C109: 0.868
A110: 0.33 | B110: 0.78 | C110: 0.877
A111: 0.34 | B111: 0.79 | C111: 0.886
A112: 0.35 | B112: 0.8 | C112: 0.895
A113: 0.36 | B113: 0.81 | C113: 0.904
A114: 0.37 | B114: 0.82 | C114: 0.913
A115: 0.38 | B115: 0.83 | C115: 0.922
A116: 0.39 | B116: 0.84 | C116: 0.931
A117: 0.4 | B117: 0.85 | C117: 0.94
A118: 0.41 | B118: 0.86 | C118: 0.944
A119: 0.42 | B119: 0.87 | C119: 0.948
A120: 0.43 | B120: 0.88 | C120: 0.952
A121: 0.44 | B121: 0.89 | C121: 0.956
A122: 0.45 | B122: 0.9 | C122: 0.96
A123: 0.46 | B123: 0.91 | C123: 0.964
A124: 0.47 | B124: 0.92 | C124: 0.968
A125: 0.48 | B125: 0.93 | C125: 0.972
A126: 0.49 | B126: 0.94 | C126: 0.976
A127: 0.5 | B127: 0.95 | C127: 0.98
A128: 0.51 | B128: 0.953 | C128: 0.982
A129: 0.52 | B129: 0.956 | C129: 0.984
A130: 0.53 | B130: 0.959 | C130: 0.986
A131: 0.54 | B131: 0.962 | C131: 0.988
A132: 0.55 | B132: 0.965 | C132: 0.99
A133: 0.56 | B133: 0.968 | C133: 0.992
A134: 0.57 | B134: 0.971 | C134: 0.994
A135: 0.58 | B135: 0.974 | C135: 0.996
A136: 0.59 | B136: 0.977 | C136: 0.998
A137: 0.6 | B137: 0.98 | C137: 1
A138: 0.61 | B138: 0.982 | C138: 1
A139: 0.62 | B139: 0.984 | C139: 1
A140: 0.63 | B140: 0.986 | C140: 1
A141: 0.64 | B141: 0.988 | C141: 1
A142: 0.65 | B142: 0.99 | C142: 1
A143: 0.66 | B143: 0.992 | C143: 1
A144: 0.67 | B144: 0.994 | C144: 1
A145: 0.68 | B145: 0.996 | C145: 1
A146: 0.69 | B146: 0.998 | C146: 1
A147: 0.7 | B147: 1 | C147: 1
A150: Temperature Control
A151: Class I | B151: 0.01
A152: Class II | B152: 0.02
A153: Class III | B153: 0.015
A154: Class IV | B154: 0.02
A155: Class V | B155: 0.03
A156: Class VI | B156: 0.04
A157: Class VII | B157: 0.035
A158: Class VIII | B158: 0.05
A160: Solar Contribution - Tank Rating
A161: A+ | B161: 0.95
A162: A | B162: 0.91
A163: B | B163: 0.86
A164: C | B164: 0.83
A165: D | B165: 0.81
A166: E | B166: 0.81
A167: F | B167: 0.81
A168: G | B168: 0.81
A170: Efficiency Class of Package
B171: Others | C171: Low Temperature HP
A172: G | B172: 0 | C172: 0
A173: F | B173: 0.3 | C173: 0.55
A174: E | B174: 0.34 | C174: 0.59
A175: D | B175: 0.36 | C175: 0.61
A176: C | B176: 0.75 | C176: 1
A177: B | B177: 0.82 | C177: 1.07
A178: A | B178: 0.9 | C178: 1.15
A179: A+ | B179: 0.98 | C179: 1.23
A180: A++ | B180: 1.25 | C180: 1.5
A181: A+++ | B181: 1.5 | C181: 1.75
A183: Efficiency Class of Package
A184: =VLOOKUP(B184,_SH_EfficiencyClassOfPackage_Lookup_Reference,IF(_SH_Preferential_Heater_Type="Low-temperature Heat Pump",3,2),FALSE) -> 0 | B184: G
A185: 0.3 | B185: F
A186: 0.34 | B186: E
A187: 0.36 | B187: D
A188: 0.75 | B188: C
A189: 0.82 | B189: B
A190: 0.9 | B190: A
A191: 0.98 | B191: A+
A192: 1.25 | B192: A++
A193: 1.5 | B193: A+++
A195: Efficiency Class of Preferential Heater
A196: 0 | B196: G
A197: 0.3 | B197: F
A198: 0.34 | B198: E
A199: 0.36 | B199: D
A200: 0.75 | B200: C
A201: 0.82 | B201: B
A202: 0.9 | B202: A
A203: 0.98 | B203: A+
A204: 1.25 | B204: A++
A205: 1.5 | B205: A+++
A207: Preferential Heater Type
A208: Boiler
A209: Heat Pump
A210: Cogeneration Heater
... 4 more rows

Sheet Auxiliary Calculations_SH (hidden)
A1: Psup | B1: =IF(_SH_SupplementaryHeater="Yes",_SH_Psup_Boiler,0)+IF(_SH_SupplementaryHeatPump="Yes",_SH_Psup_HP,0) -> 5
A3: Psup / (Prated + Psup) | B3: =ROUND((_SH_Psup)/(_SH_Prated+_SH_Psup),2) -> 0.29
A5: Prated / (Prated + Psup) | B5: =ROUND(_SH_Prated/(_SH_Prated+_SH_Psup),2) -> 0.71
A7: Heat output of preferential and supplementary heaters
A8: II | B8: =IF(_SH_Preferential_Heater_Type="Boiler",VLOOKUP(B3,_SH_StorageTank_Lookup_Boiler,IF(_SH_StorageTank="Yes",3,2),FALSE),VLOOKUP(B5,_SH_StorageTank_Lookup_Others,IF(_SH_StorageTank="Yes",2,3),FALSE)) -> 0.73
A10: III | B10: =2.94/(11*_SH_Prated) -> 0.02227272727
A12: IV | B12: =1.15/(11*_SH_Prated) -> 0.008712121212
A14: G | B14: =IF(_SH_Efficiency_Class=A14,TRUE,FALSE) -> FALSE
A15: F | B15: FALSE
A16: E | B16: FALSE
A17: D | B17: FALSE
A18: C | B18: FALSE
A19: B | B19: FALSE
A20: A | B20: TRUE
A21: A+ | B21: FALSE
A22: A++ | B22: FALSE
A23: A+++ | B23: FALSE
A25: Additional Heater or Heat Pump | B25: =IF(OR(_SH_SupplementaryHeater="Yes",_SH_SupplementaryHeatPump="Yes"),TRUE,FALSE) -> TRUE
A26: Temperature Control | B26: =IF(_SH_TemperatureControl="Yes",TRUE,FALSE) -> FALSE
A27: Solar Contribution | B27: =IF(_SH_SolarContribution="Yes",TRUE,FALSE) -> FALSE
A28: Storage Tank | B28: =IF(_SH_StorageTank="Yes",TRUE,FALSE) -> FALSE
A30: Efficiency Class of the preferential heater | B30: =VLOOKUP(_SH_I,_SH_EfficiencyClassOfPreferentialHeater_Lookup,2,TRUE) -> B
A32: Supplementary Heater Factor | B32: =IF(_SH_Preferential_Heater_Type="Boiler",0.1,_SH_II) -> 0.1

Sheet Input_WaterHeater (hidden)
A1: Allmän information
A3: Återförsäljare
A6: Modellbeteckning
A9: Primär värmare
A11: Energieffektivitet vid tappvattenvärmning för den primära värmaren | B11: 1.2
A13: Belastningsprofil (tappvattenvärmning) | B13: M
A15: Ackumulatortank
A17: Finns ackumulatortank installerad? | B17: Yes | C17: [Yes/No]
A19: Solfångare
A21: Finns solfångare installerat? | B21: Yes
A23: Årligt värmebidrag från andra källor än solen (Qnonsol) | B23: 585 | C23: kWh
A25: Årlig förbrukning av tilläggsel (Qaux) | B25: 46 | C25: kWh
A27: Solfångarens öppningsarea | B27: 4 | C27: m²
A29: Solfångarens effektivitet | B29: 1

Sheet Output_WaterHeater (hidden)
A2: Energieffektivitet vid tappvarmvattenvärmning | B2: =_WH_Water_I -> 1.2
A4: Solvärmebidrag | B4: =(1.1*_WH_Water_I-0.1)*_WH_Water_II-_WH_Water_III-B2 -> 1.392274456
A6: Paketets säsongsbundna energieffektivitet vid tappvarmvattenvärmning | B6: =SUM(_WH_Water_1,_WH_Water_2) -> 2.592274456
A8: Paketets energieffektivitetsklass vid tappvarmvattenvärmning | B8: =VLOOKUP(B6,INDIRECT("_WH_WaterEfficiencyClassOfPackage_Lookup_"&_WH_LoadProfile),2) -> A+++

Sheet Label_WaterHeater (hidden)

Sheet Auxiliary Tables_WH (hidden)
A2: Solar Contribution - Tank Rating
A3: A+ | B3: 0.95
A4: A | B4: 0.91
A5: B | B5: 0.86
A6: C | B6: 0.83
A7: D | B7: 0.81
A8: E | B8: 0.81
A9: F | B9: 0.81
A10: G | B10: 0.81
A13: Load Profile | B13: Qref
A14: M | B14: 5.845
A15: L | B15: 11.655
A16: XL | B16: 19.07
A17: XXL | B17: 24.53
A20: M | B20: 1
A21: L | B21: 2
A22: XL | B22: 3
A23: XXL | B23: 4
A25: Water Heating Efficiecny Class
A26: M
A27: 0 | B27: G
A28: 0.27 | B28: F
A29: 0.3 | B29: E
A30: 0.33 | B30: D
A31: 0.36 | B31: C
A32: 0.39 | B32: B
A33: 0.65 | B33: A
A34: 1 | B34: A+
A35: 1.3 | B35: A++
A36: 1.63 | B36: A+++
A38: L
A39: 0 | B39: G
A40: 0.27 | B40: F
A41: 0.3 | B41: E
A42: 0.34 | B42: D
A43: 0.37 | B43: C
A44: 0.5 | B44: B
A45: 0.75 | B45: A
A46: 1.15 | B46: A+
A47: 1.5 | B47: A++
A48: 1.88 | B48: A+++
A50: XL
A51: 0 | B51: G
A52: 0.27 | B52: F
A53: 0.3 | B53: E
A54: 0.35 | B54: D
A55: 0.38 | B55: C
A56: 0.55 | B56: B
A57: 0.8 | B57: A
A58: 1.23 | B58: A+
A59: 1.6 | B59: A++
A60: 2 | B60: A+++
A62: XXL
A63: 0 | B63: G
A64: 0.28 | B64: F
A65: 0.32 | B65: E
A66: 0.36 | B66: D
A67: 0.4 | B67: C
A68: 0.6 | B68: B
A69: 0.85 | B69: A
A70: 1.31 | B70: A+
A71: 1.7 | B71: A++
A72: 2.13 | B72: A+++

Sheet Auxiliary Calculations_WH (hidden)
A2: Solar Contribution | B2: =IF(_WH_SolarContribution="Yes",TRUE,FALSE) -> TRUE
A4: Strorage Tank | B4: =IF(_WH_StorageTank="Yes",TRUE,FALSE) -> TRUE
A6: Water_II | B6: =220*VLOOKUP(_WH_LoadProfile,_WH_LoadProfile_Lookup,2,FALSE)/_WH_Qnonsol -> 2.198119658
A8: Water_III | B8: =_WH_Qaux*2.5/220/VLOOKUP(_WH_LoadProfile,_WH_LoadProfile_Lookup,2,FALSE) -> 0.08943152656
A10: Water Heating Efficiency Class of the preferential heater | B10: =VLOOKUP(_WH_Water_I,INDIRECT("_WH_WaterEfficiencyClassOfPackage_Lookup_"&_WH_LoadProfile),2) -> A+
A12: Water Efficiency Class
A13: G | B13: =IF(_WH_Overall_Water_EfficiencyClass=A13,TRUE,FALSE) -> FALSE
A14: F | B14: FALSE
A15: E | B15: FALSE
A16: D | B16: FALSE
A17: C | B17: FALSE
A18: B | B18: FALSE
A19: A | B19: FALSE
A20: A+ | B20: FALSE
A21: A++ | B21: FALSE
A22: A+++ | B22: TRUE
